[Event "*** SCC Grand Prix: Titled Tuesday Blitz"]
[Site "Chess.com"]
[Date "2020.07.21"]
[Round "2"]
[White "Kolle05"]
[Black "Azoulas1"]
[Result "1-0"]
[WhiteElo "2371"]
[BlackElo "2020"]
[TimeControl "180+1"]
[EndTime "10:16:52 PDT"]
[Termination "Kolle05 won by checkmate"]

1. e4 {[%clk 0:02:55.9]} 1... c5 {[%clk 0:02:58.7]} 2. Nf3 {[%clk 0:02:54.9]}
2... e6 {[%clk 0:02:57.8]} 3. d3 {[%clk 0:02:54.8]} 3... Nc6 {[%clk 0:02:55.9]}
4. g3 {[%clk 0:02:54.5]} 4... Nge7 {[%clk 0:02:50]} 5. Bg2 {[%clk 0:02:54.3]}
5... g6 {[%clk 0:02:49.5]} 6. O-O {[%clk 0:02:54.2]} 6... Bg7 {[%clk 0:02:49]}
7. Re1 {[%clk 0:02:55.1]} 7... O-O {[%clk 0:02:47.1]} 8. c3 {[%clk 0:02:55]}
8... d6 {[%clk 0:02:45.2]} 9. d4 {[%clk 0:02:54.9]} 9... cxd4 {[%clk 0:02:42.6]}
10. cxd4 {[%clk 0:02:55.8]} 10... d5 {[%clk 0:02:42.1]} 11. e5 {[%clk
0:02:52.8]} 11... b6 {[%clk 0:02:40.1]} 12. Nc3 {[%clk 0:02:52.5]} 12... Na5
{[%clk 0:02:34.3]} 13. Bf4 {[%clk 0:02:48]} 13... Ba6 {[%clk 0:02:29.9]} 14. b3
{[%clk 0:02:46.6]} 14... Rc8 {[%clk 0:02:27.8]} 15. Qd2 {[%clk 0:02:46.3]} 15...
Rc7 {[%clk 0:02:23]} 16. Rac1 {[%clk 0:02:45.6]} 16... Qd7 {[%clk 0:02:19.2]}
17. Nd1 {[%clk 0:02:10.2]} 17... Rxc1 {[%clk 0:02:12]} 18. Qxc1 {[%clk
0:02:11.1]} 18... Rc8 {[%clk 0:02:11]} 19. Qd2 {[%clk 0:02:11.5]} 19... Nac6
{[%clk 0:02:07.6]} 20. Ne3 {[%clk 0:02:09.9]} 20... Rc7 {[%clk 0:01:55.9]} 21.
Rc1 {[%clk 0:02:07]} 21... Qc8 {[%clk 0:01:54.7]} 22. Ng4 {[%clk 0:01:46]} 22...
Nf5 {[%clk 0:01:45]} 23. Nf6+ {[%clk 0:01:45.4]} 23... Kh8 {[%clk 0:01:36.3]}
24. g4 {[%clk 0:01:37.4]} 24... Ncxd4 {[%clk 0:01:22.9]} 25. Rxc7 {[%clk
0:01:33.9]} 25... Nxf3+ {[%clk 0:01:15.9]} 26. Bxf3 {[%clk 0:01:34.8]} 26...
Qxc7 {[%clk 0:01:15.2]} 27. gxf5 {[%clk 0:01:34.5]} 27... gxf5 {[%clk
0:01:07.4]} 28. Bh6 {[%clk 0:01:22.8]} 28... Bxf6 {[%clk 0:00:57.5]} 29. exf6
{[%clk 0:01:21.1]} 29... Qe5 {[%clk 0:00:57]} 30. Qg5 {[%clk 0:00:39.2]} 30...
Qe1+ {[%clk 0:00:53.6]} 31. Kg2 {[%clk 0:00:39.1]} 31... Qf1+ {[%clk 0:00:52.1]}
32. Kg3 {[%clk 0:00:38.8]} 32... Qg1+ {[%clk 0:00:51.7]} 33. Bg2 {[%clk
0:00:39]} 33... f4+ {[%clk 0:00:37]} 34. Kh3 {[%clk 0:00:37.7]} 34... Bf1 {[%clk
0:00:21.2]} 35. Qg7# {[%clk 0:00:36.2]} 1-0

[Event "*** SCC Grand Prix: Titled Tuesday Blitz"]
[Site "Chess.com"]
[Date "2020.07.21"]
[Round "2"]
[White "13MiRacLe"]
[Black "Quattroporte300"]
[Result "0-1"]
[WhiteElo "2645"]
[BlackElo "2333"]
[TimeControl "180+1"]
[EndTime "10:16:53 PDT"]
[Termination "Quattroporte300 won by resignation"]

1. e4 {[%clk 0:03:00.9]} 1... e5 {[%clk 0:02:59.2]} 2. Nf3 {[%clk 0:02:56.5]}
2... Nc6 {[%clk 0:02:59.5]} 3. Bb5 {[%clk 0:02:57.1]} 3... a6 {[%clk 0:02:59.5]}
4. Ba4 {[%clk 0:02:57]} 4... Nf6 {[%clk 0:02:59.8]} 5. O-O {[%clk 0:02:57.1]}
5... Be7 {[%clk 0:02:59]} 6. d3 {[%clk 0:02:51.5]} 6... b5 {[%clk 0:02:58.1]} 7.
Bb3 {[%clk 0:02:37]} 7... d6 {[%clk 0:02:59]} 8. a3 {[%clk 0:02:35.9]} 8... O-O
{[%clk 0:02:58.4]} 9. Nc3 {[%clk 0:02:22.1]} 9... h6 {[%clk 0:02:55]} 10. h3
{[%clk 0:02:11.4]} 10... Be6 {[%clk 0:02:47.2]} 11. Nd5 {[%clk 0:02:10.9]} 11...
Na5 {[%clk 0:02:41.1]} 12. Nxf6+ {[%clk 0:02:05.4]} 12... Bxf6 {[%clk
0:02:40.3]} 13. Bxe6 {[%clk 0:02:05.9]} 13... fxe6 {[%clk 0:02:40.2]} 14. b4
{[%clk 0:02:06.5]} 14... Nc6 {[%clk 0:02:36.2]} 15. Bd2 {[%clk 0:01:50.1]} 15...
Kh7 {[%clk 0:02:31.6]} 16. c4 {[%clk 0:01:31.5]} 16... bxc4 {[%clk 0:02:05.1]}
17. dxc4 {[%clk 0:01:32.4]} 17... Nd4 {[%clk 0:02:05.5]} 18. Nxd4 {[%clk
0:01:29.4]} 18... exd4 {[%clk 0:02:04.8]} 19. f4 {[%clk 0:01:27]} 19... g6
{[%clk 0:01:35]} 20. Qg4 {[%clk 0:01:21.5]} 20... Qe7 {[%clk 0:01:30.7]} 21.
Rac1 {[%clk 0:01:20]} 21... c5 {[%clk 0:01:24.8]} 22. e5 {[%clk 0:00:23.4]}
22... dxe5 {[%clk 0:01:13.1]} 23. fxe5 {[%clk 0:00:23.8]} 23... Bxe5 {[%clk
0:01:11.7]} 24. Rfe1 {[%clk 0:00:24.5]} 24... Rf5 {[%clk 0:01:08.2]} 25. bxc5
{[%clk 0:00:17]} 25... Qxc5 {[%clk 0:01:06.5]} 26. Rb1 {[%clk 0:00:17.2]} 26...
Ra7 {[%clk 0:00:54.9]} 27. Kh1 {[%clk 0:00:12.9]} 27... Raf7 {[%clk 0:00:53.6]}
28. Qh4 {[%clk 0:00:10.6]} 28... h5 {[%clk 0:00:45.2]} 29. Qe4 {[%clk
0:00:10.4]} 29... Qxc4 {[%clk 0:00:44.7]} 30. Rb7 {[%clk 0:00:06.1]} 30... Rf1+
{[%clk 0:00:40.6]} 0-1

[Event "*** SCC Grand Prix: Titled Tuesday Blitz"]
[Site "Chess.com"]
[Date "2020.07.21"]
[Round "2"]
[White "CzechmVIII"]
[Black "kingofthenil"]
[Result "1/2-1/2"]
[WhiteElo "2195"]
[BlackElo "2420"]
[TimeControl "180+1"]
[EndTime "10:16:53 PDT"]
[Termination "Game drawn by repetition"]

1. e4 {[%clk 0:03:00.9]} 1... Nc6 {[%clk 0:02:59.8]} 2. Nf3 {[%clk 0:03:00.7]}
2... d5 {[%clk 0:03:00.7]} 3. exd5 {[%clk 0:03:00.2]} 3... Qxd5 {[%clk
0:03:01.6]} 4. Nc3 {[%clk 0:03:00.1]} 4... Qh5 {[%clk 0:03:02.5]} 5. Bb5 {[%clk
0:02:57.6]} 5... Bg4 {[%clk 0:03:03.4]} 6. Qe2 {[%clk 0:02:52.4]} 6... O-O-O
{[%clk 0:03:03.3]} 7. Bxc6 {[%clk 0:02:52.5]} 7... bxc6 {[%clk 0:03:04.2]} 8.
Qa6+ {[%clk 0:02:47.9]} 8... Kd7 {[%clk 0:03:03.8]} 9. Qd3+ {[%clk 0:01:37.1]}
9... Ke8 {[%clk 0:03:01.5]} 10. Qe4 {[%clk 0:01:34.1]} 10... Bxf3 {[%clk
0:03:01.1]} 11. gxf3 {[%clk 0:01:28.9]} 11... Qg6 {[%clk 0:03:00.1]} 12. d3
{[%clk 0:00:54.1]} 12... f5 {[%clk 0:03:00.2]} 13. Qc4 {[%clk 0:00:44.3]} 13...
e5 {[%clk 0:03:00]} 14. Be3 {[%clk 0:00:37.6]} 14... Bd6 {[%clk 0:02:59.8]} 15.
O-O-O {[%clk 0:00:37.1]} 15... Ne7 {[%clk 0:02:58.9]} 16. Rhg1 {[%clk
0:00:36.5]} 16... Qf7 {[%clk 0:02:58.5]} 17. Qa4 {[%clk 0:00:33.7]} 17... g6
{[%clk 0:02:47.8]} 18. Qxa7 {[%clk 0:00:31.1]} 18... Kd7 {[%clk 0:02:47.3]} 19.
Qa4 {[%clk 0:00:27.7]} 19... Ra8 {[%clk 0:02:47.2]} 20. Qc4 {[%clk 0:00:27.7]}
20... Qe6 {[%clk 0:02:44.1]} 21. Qxe6+ {[%clk 0:00:27.2]} 21... Kxe6 {[%clk
0:02:45]} 22. Kb1 {[%clk 0:00:27.4]} 22... Nd5 {[%clk 0:02:44.5]} 23. Nxd5
{[%clk 0:00:24.5]} 23... cxd5 {[%clk 0:02:45.4]} 24. d4 {[%clk 0:00:25.1]} 24...
e4 {[%clk 0:02:42]} 25. fxe4 {[%clk 0:00:23.2]} 25... fxe4 {[%clk 0:02:41.7]}
26. h4 {[%clk 0:00:23.2]} 26... Rhg8 {[%clk 0:02:36.9]} 27. Rg4 {[%clk
0:00:21.7]} 27... h5 {[%clk 0:02:36.7]} 28. Rg2 {[%clk 0:00:21.3]} 28... Be7
{[%clk 0:02:36.9]} 29. Rdg1 {[%clk 0:00:20.8]} 29... Kf7 {[%clk 0:02:37.2]} 30.
Bg5 {[%clk 0:00:21]} 30... Ra6 {[%clk 0:02:36.7]} 31. Bxe7 {[%clk 0:00:20.5]}
31... Kxe7 {[%clk 0:02:37.6]} 32. Rg5 {[%clk 0:00:20.8]} 32... Rd6 {[%clk
0:02:34.8]} 33. c3 {[%clk 0:00:20.4]} 33... c6 {[%clk 0:02:34.5]} 34. Kc2 {[%clk
0:00:20.1]} 34... Rf6 {[%clk 0:02:34.5]} 35. R1g2 {[%clk 0:00:19.1]} 35... Rf4
{[%clk 0:02:34.5]} 36. Rxg6 {[%clk 0:00:18.3]} 36... Rxg6 {[%clk 0:02:35.4]} 37.
Rxg6 {[%clk 0:00:18.5]} 37... Rxf2+ {[%clk 0:02:36.3]} 38. Kb3 {[%clk 0:00:18]}
38... e3 {[%clk 0:02:32.3]} 39. Rg1 {[%clk 0:00:14.3]} 39... Kf6 {[%clk
0:02:17]} 40. Re1 {[%clk 0:00:14.2]} 40... e2 {[%clk 0:02:05.9]} 41. a4 {[%clk
0:00:13.7]} 41... Kf5 {[%clk 0:02:05.5]} 42. a5 {[%clk 0:00:14]} 42... Kg4
{[%clk 0:02:05.8]} 43. a6 {[%clk 0:00:14.1]} 43... Kxh4 {[%clk 0:02:02.7]} 44.
a7 {[%clk 0:00:13]} 44... Rf8 {[%clk 0:02:03.4]} 45. Rxe2 {[%clk 0:00:13.2]}
45... Ra8 {[%clk 0:02:04.3]} 46. Kb4 {[%clk 0:00:12.9]} 46... Rxa7 {[%clk
0:02:04.1]} 47. Kc5 {[%clk 0:00:13.4]} 47... Ra6 {[%clk 0:02:04]} 48. b3 {[%clk
0:00:11.5]} 48... Kg3 {[%clk 0:02:00.4]} 49. c4 {[%clk 0:00:11.7]} 49... dxc4
{[%clk 0:02:01.2]} 50. bxc4 {[%clk 0:00:11.5]} 50... h4 {[%clk 0:02:02.1]} 51.
Re7 {[%clk 0:00:10.7]} 51... h3 {[%clk 0:01:58.9]} 52. Rg7+ {[%clk 0:00:10.8]}
52... Kf2 {[%clk 0:01:57.3]} 53. Rh7 {[%clk 0:00:11.3]} 53... Kg2 {[%clk
0:01:57.6]} 54. d5 {[%clk 0:00:12]} 54... cxd5 {[%clk 0:01:57.2]} 55. cxd5
{[%clk 0:00:12.9]} 55... Ra3 {[%clk 0:01:46.6]} 56. d6 {[%clk 0:00:12.1]} 56...
h2 {[%clk 0:01:46.6]} 57. Rxh2+ {[%clk 0:00:12]} 57... Kxh2 {[%clk 0:01:46.3]}
58. d7 {[%clk 0:00:12]} 58... Rd3 {[%clk 0:01:45]} 59. Kc6 {[%clk 0:00:12.4]}
59... Kg3 {[%clk 0:01:45.7]} 60. Kc7 {[%clk 0:00:12.9]} 60... Rc3+ {[%clk
0:01:46]} 61. Kb7 {[%clk 0:00:13.4]} 61... Rd3 {[%clk 0:01:45.3]} 62. Kc7 {[%clk
0:00:13.8]} 62... Rc3+ {[%clk 0:01:43.6]} 63. Kb7 {[%clk 0:00:14.2]} 63... Rb3+
{[%clk 0:01:44.5]} 64. Kc7 {[%clk 0:00:14.5]} 64... Rc3+ {[%clk 0:01:43.8]}
1/2-1/2

[Event "*** SCC Grand Prix: Titled Tuesday Blitz"]
[Site "Chess.com"]
[Date "2020.07.21"]
[Round "2"]
[White "HouseOfDurin"]
[Black "ApacheSVD"]
[Result "1-0"]
[WhiteElo "2061"]
[BlackElo "2358"]
[TimeControl "180+1"]
[EndTime "10:16:54 PDT"]
[Termination "HouseOfDurin won by resignation"]

1. d4 {[%clk 0:03:00.9]} 1... Nf6 {[%clk 0:02:59.6]} 2. Bg5 {[%clk 0:03:00.8]}
2... d5 {[%clk 0:02:50]} 3. Bxf6 {[%clk 0:03:00.6]} 3... exf6 {[%clk 0:02:48.1]}
4. e3 {[%clk 0:03:01.5]} 4... g6 {[%clk 0:02:48]} 5. c4 {[%clk 0:03:01.6]} 5...
c6 {[%clk 0:02:46.1]} 6. cxd5 {[%clk 0:03:01.1]} 6... cxd5 {[%clk 0:02:45.7]} 7.
Nc3 {[%clk 0:02:59.9]} 7... Bg7 {[%clk 0:02:45.8]} 8. g3 {[%clk 0:03:00.2]} 8...
O-O {[%clk 0:02:45.3]} 9. Bg2 {[%clk 0:03:00.8]} 9... Be6 {[%clk 0:02:45.3]} 10.
Nge2 {[%clk 0:03:01.1]} 10... f5 {[%clk 0:02:45.2]} 11. Nf4 {[%clk 0:02:58.8]}
11... Qa5 {[%clk 0:02:44.4]} 12. Nxd5 {[%clk 0:02:58]} 12... Bxd5 {[%clk
0:02:42.7]} 13. Bxd5 {[%clk 0:02:58.9]} 13... Rd8 {[%clk 0:02:43]} 14. O-O
{[%clk 0:02:58.2]} 14... Rxd5 {[%clk 0:02:42.1]} 15. Nxd5 {[%clk 0:02:58.1]}
15... Qxd5 {[%clk 0:02:43]} 16. Qb3 {[%clk 0:02:37.6]} 16... Qe4 {[%clk
0:02:15.7]} 17. Rac1 {[%clk 0:02:30.3]} 17... Na6 {[%clk 0:01:38.5]} 18. Qb5
{[%clk 0:02:23.4]} 18... Rd8 {[%clk 0:01:29.3]} 19. Rc4 {[%clk 0:02:15.8]} 19...
f4 {[%clk 0:01:19]} 20. exf4 {[%clk 0:01:33.8]} 20... Bxd4 {[%clk 0:01:09.6]}
21. b3 {[%clk 0:01:08.2]} 21... Qf3 {[%clk 0:00:46.3]} 22. Rxd4 {[%clk
0:01:02.8]} 22... Rxd4 {[%clk 0:00:44.3]} 23. Qe8+ {[%clk 0:01:02.8]} 23... Kg7
{[%clk 0:00:41.9]} 24. Qe5+ {[%clk 0:01:03.7]} 24... Kh6 {[%clk 0:00:29]} 25.
Qxd4 {[%clk 0:01:04.6]} 25... Nc7 {[%clk 0:00:26.9]} 26. Rc1 {[%clk 0:00:46.4]}
26... Ne6 {[%clk 0:00:26.7]} 27. Qe5 {[%clk 0:00:44.8]} 27... Qg4 {[%clk
0:00:20.5]} 28. h4 {[%clk 0:00:39.6]} 28... a6 {[%clk 0:00:16.6]} 29. Kg2 {[%clk
0:00:37.8]} 29... a5 {[%clk 0:00:15.4]} 30. Rc8 {[%clk 0:00:35.2]} 30... Nxf4+
{[%clk 0:00:15]} 31. Qxf4+ {[%clk 0:00:35.2]} 31... Qxf4 {[%clk 0:00:13.6]} 32.
gxf4 {[%clk 0:00:36.1]} 1-0

[Event "*** SCC Grand Prix: Titled Tuesday Blitz"]
[Site "Chess.com"]
[Date "2020.07.21"]
[Round "2"]
[White "SHIVACalypso"]
[Black "hansen"]
[Result "0-1"]
[WhiteElo "2341"]
[BlackElo "2901"]
[TimeControl "180+1"]
[EndTime "10:16:56 PDT"]
[Termination "hansen won by checkmate"]

1. Nf3 {[%clk 0:03:00.9]} 1... d5 {[%clk 0:02:59.8]} 2. c4 {[%clk 0:03:00.6]}
2... d4 {[%clk 0:02:59.9]} 3. e3 {[%clk 0:03:00.6]} 3... Nc6 {[%clk 0:02:59.5]}
4. exd4 {[%clk 0:02:59.6]} 4... Nxd4 {[%clk 0:03:00.4]} 5. Nxd4 {[%clk
0:03:00.1]} 5... Qxd4 {[%clk 0:03:01.3]} 6. Nc3 {[%clk 0:03:00.2]} 6... Nh6
{[%clk 0:03:01.2]} 7. d3 {[%clk 0:02:59.6]} 7... Nf5 {[%clk 0:03:01]} 8. Nb5
{[%clk 0:02:49.4]} 8... Qd8 {[%clk 0:02:53]} 9. Bf4 {[%clk 0:02:42.4]} 9... Nd6
{[%clk 0:02:52.9]} 10. Nxd6+ {[%clk 0:02:38.7]} 10... exd6 {[%clk 0:02:47.6]}
11. d4 {[%clk 0:02:29.5]} 11... Be7 {[%clk 0:02:47.1]} 12. Bd3 {[%clk
0:02:27.6]} 12... O-O {[%clk 0:02:48]} 13. O-O {[%clk 0:02:25.7]} 13... Bf6
{[%clk 0:02:48.3]} 14. Bc2 {[%clk 0:02:20.2]} 14... Re8 {[%clk 0:02:48.5]} 15.
Qd2 {[%clk 0:02:05.3]} 15... Be6 {[%clk 0:02:33.6]} 16. d5 {[%clk 0:01:52.6]}
16... Bd7 {[%clk 0:02:31.2]} 17. Rab1 {[%clk 0:01:44.5]} 17... a5 {[%clk
0:02:30.6]} 18. Be3 {[%clk 0:01:29.5]} 18... g6 {[%clk 0:02:26.3]} 19. Bd4
{[%clk 0:01:29.1]} 19... Bxd4 {[%clk 0:02:01.7]} 20. Qxd4 {[%clk 0:01:30]} 20...
b6 {[%clk 0:01:53.7]} 21. b3 {[%clk 0:01:17.4]} 21... Qg5 {[%clk 0:01:47]} 22.
Rfe1 {[%clk 0:01:13.5]} 22... Bh3 {[%clk 0:01:41.3]} 23. Be4 {[%clk 0:01:02.8]}
23... Re5 {[%clk 0:01:23.3]} 24. Bf3 {[%clk 0:00:42.1]} 24... Rae8 {[%clk
0:01:21.2]} 25. Rxe5 {[%clk 0:00:36.3]} 25... dxe5 {[%clk 0:01:19]} 26. Qe3
{[%clk 0:00:31.6]} 26... Qxe3 {[%clk 0:01:12]} 27. fxe3 {[%clk 0:00:32.5]} 27...
Bd7 {[%clk 0:01:08.9]} 28. e4 {[%clk 0:00:27.3]} 28... f5 {[%clk 0:01:08.9]} 29.
Rc1 {[%clk 0:00:26.5]} 29... Kf7 {[%clk 0:01:05.5]} 30. c5 {[%clk 0:00:26.4]}
30... Ke7 {[%clk 0:01:05.7]} 31. cxb6 {[%clk 0:00:21.8]} 31... cxb6 {[%clk
0:01:06]} 32. Rc7 {[%clk 0:00:22]} 32... Rb8 {[%clk 0:01:06.2]} 33. Kf2 {[%clk
0:00:19.5]} 33... Kd6 {[%clk 0:01:06]} 34. Ra7 {[%clk 0:00:19.1]} 34... Rc8
{[%clk 0:01:04.5]} 35. Rb7 {[%clk 0:00:15.4]} 35... Rc2+ {[%clk 0:00:57.9]} 36.
Ke3 {[%clk 0:00:15.6]} 36... Bb5 {[%clk 0:00:47.4]} 37. Rxb6+ {[%clk 0:00:09]}
37... Kc5 {[%clk 0:00:47.5]} 38. Rb8 {[%clk 0:00:08.6]} 38... f4# {[%clk
0:00:47.6]} 0-1

[Event "*** SCC Grand Prix: Titled Tuesday Blitz"]
[Site "Chess.com"]
[Date "2020.07.21"]
[Round "2"]
[White "theblitzchamp"]
[Black "kobemagic"]
[Result "1-0"]
[WhiteElo "2659"]
[BlackElo "2316"]
[TimeControl "180+1"]
[EndTime "10:16:57 PDT"]
[Termination "theblitzchamp won by checkmate"]

1. d4 {[%clk 0:03:00.9]} 1... Nf6 {[%clk 0:02:59.3]} 2. Bf4 {[%clk 0:03:01.4]}
2... d5 {[%clk 0:02:56.7]} 3. e3 {[%clk 0:03:01.6]} 3... c5 {[%clk 0:02:55.9]}
4. Nd2 {[%clk 0:03:02.1]} 4... Nc6 {[%clk 0:02:55]} 5. c3 {[%clk 0:03:02.2]}
5... Bf5 {[%clk 0:02:52]} 6. Ngf3 {[%clk 0:03:00.7]} 6... e6 {[%clk 0:02:52.3]}
7. Ne5 {[%clk 0:02:59.3]} 7... Bd6 {[%clk 0:02:51.7]} 8. Qb3 {[%clk 0:02:32.6]}
8... Qc7 {[%clk 0:02:39.4]} 9. Ndf3 {[%clk 0:02:13.5]} 9... O-O {[%clk
0:02:36.7]} 10. Nxc6 {[%clk 0:01:59.4]} 10... bxc6 {[%clk 0:02:35.3]} 11. Bxd6
{[%clk 0:01:53.1]} 11... Qxd6 {[%clk 0:02:34.3]} 12. Qa3 {[%clk 0:01:53.7]}
12... Ne4 {[%clk 0:02:26.5]} 13. Ne5 {[%clk 0:01:49.6]} 13... cxd4 {[%clk
0:02:25.8]} 14. Qxd6 {[%clk 0:01:48.4]} 14... Nxd6 {[%clk 0:02:25.8]} 15. exd4
{[%clk 0:01:49]} 15... Rfc8 {[%clk 0:02:18.7]} 16. Bd3 {[%clk 0:01:48.1]} 16...
c5 {[%clk 0:02:15.4]} 17. Bxf5 {[%clk 0:01:44.4]} 17... Nxf5 {[%clk 0:02:16.3]}
18. dxc5 {[%clk 0:01:44.4]} 18... Rxc5 {[%clk 0:02:15.8]} 19. Nd3 {[%clk
0:01:34.4]} 19... Rc7 {[%clk 0:02:05.7]} 20. Ke2 {[%clk 0:01:30.9]} 20... Nd6
{[%clk 0:02:06]} 21. Rhd1 {[%clk 0:01:28.4]} 21... Rb8 {[%clk 0:02:04.3]} 22.
Rac1 {[%clk 0:01:26.5]} 22... a5 {[%clk 0:02:04.3]} 23. f3 {[%clk 0:01:15.4]}
23... Kf8 {[%clk 0:02:02.4]} 24. b4 {[%clk 0:01:02]} 24... axb4 {[%clk
0:01:58.2]} 25. cxb4 {[%clk 0:01:01.2]} 25... Nc4 {[%clk 0:01:55.3]} 26. a4
{[%clk 0:00:58.6]} 26... Ra7 {[%clk 0:01:45.8]} 27. a5 {[%clk 0:00:57.3]} 27...
Ke7 {[%clk 0:01:44.7]} 28. Rc3 {[%clk 0:00:55.2]} 28... Rb5 {[%clk 0:01:42.1]}
29. Rb1 {[%clk 0:00:44.5]} 29... f6 {[%clk 0:01:37.6]} 30. Rbb3 {[%clk
0:00:36.3]} 30... Kd6 {[%clk 0:01:30.9]} 31. Nc5 {[%clk 0:00:29.9]} 31... Ra8
{[%clk 0:01:19]} 32. g3 {[%clk 0:00:28.2]} 32... Rab8 {[%clk 0:01:15.7]} 33. Nd3
{[%clk 0:00:26.4]} 33... Nxa5 {[%clk 0:01:13.2]} 34. Ra3 {[%clk 0:00:25.5]}
34... Nc4 {[%clk 0:01:12.1]} 35. Ra6+ {[%clk 0:00:26]} 35... R5b6 {[%clk
0:01:12.3]} 36. Ra7 {[%clk 0:00:26.5]} 36... R8b7 {[%clk 0:01:12.6]} 37. Ra8
{[%clk 0:00:27]} 37... Ne5 {[%clk 0:01:08.6]} 38. Nc5 {[%clk 0:00:25]} 38... Rb8
{[%clk 0:01:03.9]} 39. Ra7 {[%clk 0:00:25.5]} 39... d4 {[%clk 0:00:48]} 40. Ne4+
{[%clk 0:00:24.1]} 40... Kd5 {[%clk 0:00:44.3]} 41. Rc5# {[%clk 0:00:25]} 1-0

[Event "*** SCC Grand Prix: Titled Tuesday Blitz"]
[Site "Chess.com"]
[Date "2020.07.21"]
[Round "2"]
[White "FloMaster111"]
[Black "Vuk2000"]
[Result "0-1"]
[WhiteElo "2265"]
[BlackElo "2609"]
[TimeControl "180+1"]
[EndTime "10:17:00 PDT"]
[Termination "Vuk2000 won by resignation"]

1. d4 {[%clk 0:03:00]} 1... e6 {[%clk 0:02:57.6]} 2. Nf3 {[%clk 0:02:58.3]} 2...
Nf6 {[%clk 0:02:57.6]} 3. Nbd2 {[%clk 0:02:56.7]} 3... d5 {[%clk 0:02:56.4]} 4.
e3 {[%clk 0:02:56.5]} 4... Bd6 {[%clk 0:02:54.7]} 5. a3 {[%clk 0:02:56.4]} 5...
Nbd7 {[%clk 0:02:53.4]} 6. c4 {[%clk 0:02:55.8]} 6... c5 {[%clk 0:02:50.4]} 7.
dxc5 {[%clk 0:02:55.8]} 7... Nxc5 {[%clk 0:02:49.9]} 8. b4 {[%clk 0:02:55.9]}
8... Nce4 {[%clk 0:02:49.7]} 9. Bb2 {[%clk 0:02:55.1]} 9... O-O {[%clk
0:02:48.1]} 10. Qb3 {[%clk 0:02:54.8]} 10... b6 {[%clk 0:02:33]} 11. Bd3 {[%clk
0:02:52.9]} 11... Nxd2 {[%clk 0:02:28.8]} 12. Nxd2 {[%clk 0:02:53.8]} 12... Bb7
{[%clk 0:02:24.6]} 13. O-O {[%clk 0:02:53.6]} 13... Rc8 {[%clk 0:02:06.4]} 14.
Rad1 {[%clk 0:02:53.2]} 14... Bb8 {[%clk 0:01:56.6]} 15. Qa2 {[%clk 0:02:51]}
15... dxc4 {[%clk 0:01:24.1]} 16. Nxc4 {[%clk 0:02:50.7]} 16... Qc7 {[%clk
0:01:23.2]} 17. Be5 {[%clk 0:02:38.4]} 17... Qc6 {[%clk 0:01:23.1]} 18. f4
{[%clk 0:02:27.7]} 18... Ba6 {[%clk 0:01:04.5]} 19. Bxb8 {[%clk 0:02:04.1]}
19... Bxc4 {[%clk 0:01:04.2]} 20. Bxc4 {[%clk 0:01:51.2]} 20... Rxb8 {[%clk
0:01:04]} 21. Be2 {[%clk 0:01:48.2]} 21... Qc3 {[%clk 0:01:01.8]} 22. Rd3 {[%clk
0:01:44.6]} 22... Qc6 {[%clk 0:01:00.2]} 23. Bf3 {[%clk 0:01:44.2]} 23... Qc7
{[%clk 0:00:58]} 24. g3 {[%clk 0:01:42.8]} 24... e5 {[%clk 0:00:58]} 25. Rd2
{[%clk 0:01:33.8]} 25... Qc3 {[%clk 0:00:54.8]} 26. Re2 {[%clk 0:01:30.1]} 26...
Rbd8 {[%clk 0:00:46]} 27. Rfe1 {[%clk 0:01:24.1]} 27... e4 {[%clk 0:00:41.2]}
28. Bg2 {[%clk 0:01:23.1]} 28... Rd3 {[%clk 0:00:41.7]} 29. a4 {[%clk
0:01:18.5]} 29... Qxb4 {[%clk 0:00:40]} 30. h3 {[%clk 0:01:12.3]} 30... Ra3
{[%clk 0:00:38.9]} 31. Qc2 {[%clk 0:01:06.8]} 31... h5 {[%clk 0:00:37.3]} 32. g4
{[%clk 0:01:05.4]} 32... hxg4 {[%clk 0:00:35.8]} 33. hxg4 {[%clk 0:01:06.3]}
33... Nxg4 {[%clk 0:00:32.4]} 34. Bxe4 {[%clk 0:01:01.7]} 34... Nf6 {[%clk
0:00:30.2]} 35. Bc6 {[%clk 0:00:57.4]} 35... Rc3 {[%clk 0:00:29.1]} 0-1

[Event "*** SCC Grand Prix: Titled Tuesday Blitz"]
[Site "Chess.com"]
[Date "2020.07.21"]
[Round "2"]
[White "rasmussvane"]
[Black "Onegust"]
[Result "1-0"]
[WhiteElo "2898"]
[BlackElo "2574"]
[TimeControl "180+1"]
[EndTime "10:17:01 PDT"]
[Termination "rasmussvane won by resignation"]

1. Nf3 {[%clk 0:03:00.9]} 1... Nf6 {[%clk 0:02:59.5]} 2. g3 {[%clk 0:03:00.8]}
2... b6 {[%clk 0:02:57.4]} 3. Bg2 {[%clk 0:03:01]} 3... Bb7 {[%clk 0:02:58.1]}
4. O-O {[%clk 0:03:01.6]} 4... e6 {[%clk 0:02:58.5]} 5. d4 {[%clk 0:03:01.9]}
5... g6 {[%clk 0:02:57.3]} 6. c4 {[%clk 0:03:01.8]} 6... Bg7 {[%clk 0:02:57.6]}
7. Qc2 {[%clk 0:03:02.1]} 7... O-O {[%clk 0:02:51.2]} 8. Nc3 {[%clk 0:03:02.3]}
8... d6 {[%clk 0:02:39.7]} 9. e4 {[%clk 0:03:01]} 9... Nbd7 {[%clk 0:02:28.1]}
10. Be3 {[%clk 0:02:44.5]} 10... a6 {[%clk 0:02:23.2]} 11. Rad1 {[%clk
0:02:37.5]} 11... Qe7 {[%clk 0:02:22.4]} 12. Rfe1 {[%clk 0:02:27.6]} 12... b5
{[%clk 0:02:12.9]} 13. e5 {[%clk 0:02:09.1]} 13... dxe5 {[%clk 0:01:56.3]} 14.
dxe5 {[%clk 0:02:09.2]} 14... Ng4 {[%clk 0:01:51.5]} 15. Bg5 {[%clk 0:01:26.4]}
15... Qe8 {[%clk 0:01:42.5]} 16. cxb5 {[%clk 0:01:23.8]} 16... axb5 {[%clk
0:01:17.7]} 17. Nxb5 {[%clk 0:01:22.9]} 17... Rxa2 {[%clk 0:01:16.7]} 18. Nxc7
{[%clk 0:00:29.2]} 18... Qc8 {[%clk 0:01:14]} 19. Be7 {[%clk 0:00:26.6]} 19...
Ngxe5 {[%clk 0:00:19.1]} 20. Nxe5 {[%clk 0:00:24.2]} 20... Nxe5 {[%clk
0:00:12.8]} 21. Bxf8 {[%clk 0:00:24.2]} 21... Kxf8 {[%clk 0:00:08.4]} 22. Rxe5
{[%clk 0:00:20.5]} 22... Bxg2 {[%clk 0:00:05.5]} 23. Nxe6+ {[%clk 0:00:19.6]}
1-0